[Event "*** Titled Tuesday Blitz"]
[Site "Chess.com"]
[Date "2020.11.10"]
[Round "4"]
[White "Leonid_Starozhilov"]
[Black "capatl"]
[Result "0-1"]
[WhiteElo "2676"]
[BlackElo "2509"]
[TimeControl "180+1"]
[EndTime "10:42:30 PST"]
[Termination "capatl won by checkmate"]

1. e4 {[%clk 0:03:00.9]} 1... c5 {[%clk 0:02:59.8]} 2. Nf3 {[%clk 0:03:00.9]}
2... e6 {[%clk 0:02:58]} 3. c4 {[%clk 0:03:00.7]} 3... Nc6 {[%clk 0:02:55.6]} 4.
Nc3 {[%clk 0:03:00.9]} 4... a6 {[%clk 0:02:52.5]} 5. d4 {[%clk 0:02:59]} 5...
cxd4 {[%clk 0:02:52.5]} 6. Nxd4 {[%clk 0:02:59.9]} 6... Qc7 {[%clk 0:02:51.5]}
7. Be2 {[%clk 0:02:53.5]} 7... Nf6 {[%clk 0:02:51.3]} 8. Be3 {[%clk 0:02:53.4]}
8... Bb4 {[%clk 0:02:40.8]} 9. O-O {[%clk 0:02:53]} 9... Bxc3 {[%clk 0:02:38.9]}
10. bxc3 {[%clk 0:02:53.9]} 10... Nxe4 {[%clk 0:02:39.3]} 11. Nxc6 {[%clk
0:02:18]} 11... Nxc3 {[%clk 0:02:21.9]} 12. Qc2 {[%clk 0:02:18.3]} 12... Nxe2+
{[%clk 0:02:22]} 13. Qxe2 {[%clk 0:02:19.2]} 13... Qxc6 {[%clk 0:02:20.9]} 14.
Qg4 {[%clk 0:02:19.1]} 14... Kf8 {[%clk 0:01:57.3]} 15. c5 {[%clk 0:02:19]}
15... f6 {[%clk 0:01:07.6]} 16. Rfd1 {[%clk 0:02:08.9]} 16... Kf7 {[%clk
0:01:02.2]} 17. Rd6 {[%clk 0:02:04.1]} 17... Qb5 {[%clk 0:00:58.6]} 18. Qh5+
{[%clk 0:01:44.6]} 18... g6 {[%clk 0:00:57.2]} 19. Qh6 {[%clk 0:01:38.1]} 19...
a5 {[%clk 0:00:52.8]} 20. Rad1 {[%clk 0:01:37.2]} 20... Ra6 {[%clk 0:00:51.4]}
21. R6d2 {[%clk 0:01:06.1]} 21... Qa4 {[%clk 0:00:28.6]} 22. h4 {[%clk
0:00:50.4]} 22... e5 {[%clk 0:00:14.5]} 23. f3 {[%clk 0:00:27.1]} 23... Re6
{[%clk 0:00:10.3]} 24. Kh2 {[%clk 0:00:19.5]} 24... Qc6 {[%clk 0:00:08.6]} 25.
Rd6 {[%clk 0:00:15.5]} 25... Rxd6 {[%clk 0:00:07.4]} 26. Rxd6 {[%clk 0:00:16.4]}
26... Qa4 {[%clk 0:00:07.9]} 27. Rxf6+ {[%clk 0:00:11.4]} 27... Kxf6 {[%clk
0:00:07.3]} 28. Bg5+ {[%clk 0:00:12]} 28... Ke6 {[%clk 0:00:07.4]} 29. Qg7
{[%clk 0:00:11.8]} 29... Re8 {[%clk 0:00:06.2]} 30. Qf6+ {[%clk 0:00:10.9]}
30... Kd5 {[%clk 0:00:06.6]} 31. Qd6+ {[%clk 0:00:10.9]} 31... Kc4 {[%clk
0:00:07.2]} 32. Qf6 {[%clk 0:00:09.9]} 32... Qc6 {[%clk 0:00:06.5]} 33. Qg7
{[%clk 0:00:08.2]} 33... Qe6 {[%clk 0:00:07]} 34. Qxh7 {[%clk 0:00:07.9]} 34...
Kxc5 {[%clk 0:00:06.9]} 35. Qg7 {[%clk 0:00:06.8]} 35... Kc6 {[%clk 0:00:07.1]}
36. a3 {[%clk 0:00:06.2]} 36... d5 {[%clk 0:00:07.3]} 37. Qh6 {[%clk 0:00:04.7]}
37... Bd7 {[%clk 0:00:07.6]} 38. Qg7 {[%clk 0:00:05]} 38... Qf5 {[%clk
0:00:07.6]} 39. Qh7 {[%clk 0:00:04.1]} 39... e4 {[%clk 0:00:07.9]} 40. fxe4
{[%clk 0:00:03.8]} 40... Qxe4 {[%clk 0:00:08.5]} 41. g3 {[%clk 0:00:02.8]} 41...
Qe2+ {[%clk 0:00:08.2]} 42. Kg1 {[%clk 0:00:03]} 42... Qd1+ {[%clk 0:00:08.7]}
43. Kf2 {[%clk 0:00:03.4]} 43... Re2+ {[%clk 0:00:08.9]} 44. Kf3 {[%clk
0:00:04.3]} 44... Qf1# {[%clk 0:00:09.3]} 0-1

[Event "*** Titled Tuesday Blitz"]
[Site "Chess.com"]
[Date "2020.11.10"]
[Round "4"]
[White "lefonghua"]
[Black "temus_galaktionov"]
[Result "1-0"]
[WhiteElo "2495"]
[BlackElo "2630"]
[TimeControl "180+1"]
[EndTime "10:42:31 PST"]
[Termination "lefonghua won on time"]

1. d4 {[%clk 0:03:00.9]} 1... c6 {[%clk 0:03:00.9]} 2. c4 {[%clk 0:03:00.6]}
2... g6 {[%clk 0:03:00.7]} 3. e4 {[%clk 0:02:59.4]} 3... Bg7 {[%clk 0:03:01.6]}
4. f4 {[%clk 0:02:54]} 4... d6 {[%clk 0:02:51.7]} 5. Nc3 {[%clk 0:02:49.1]} 5...
e5 {[%clk 0:02:49.6]} 6. fxe5 {[%clk 0:02:47.6]} 6... dxe5 {[%clk 0:02:50.5]} 7.
d5 {[%clk 0:02:47.9]} 7... Nf6 {[%clk 0:02:39]} 8. Nf3 {[%clk 0:02:45.9]} 8...
O-O {[%clk 0:02:34.2]} 9. Be2 {[%clk 0:02:45.3]} 9... Qb6 {[%clk 0:02:18.6]} 10.
Na4 {[%clk 0:02:34.4]} 10... Qa5+ {[%clk 0:02:15.3]} 11. Bd2 {[%clk 0:02:29.5]}
11... Qc7 {[%clk 0:02:12.7]} 12. Nc3 {[%clk 0:02:27]} 12... Qb6 {[%clk
0:02:11.2]} 13. Na4 {[%clk 0:02:27.2]} 13... Qc7 {[%clk 0:02:10.7]} 14. Nc3
{[%clk 0:02:26.6]} 14... Na6 {[%clk 0:01:59.7]} 15. O-O {[%clk 0:02:14]} 15...
Qb6+ {[%clk 0:01:56]} 16. Kh1 {[%clk 0:02:13.8]} 16... Ng4 {[%clk 0:01:54.7]}
17. Qe1 {[%clk 0:01:36.1]} 17... Qxb2 {[%clk 0:01:52.4]} 18. h3 {[%clk
0:01:31.3]} 18... Nf6 {[%clk 0:01:47.8]} 19. Rb1 {[%clk 0:01:23.5]} 19... Qa3
{[%clk 0:01:41.8]} 20. dxc6 {[%clk 0:01:02.7]} 20... bxc6 {[%clk 0:01:38.2]} 21.
Nxe5 {[%clk 0:01:03]} 21... Nc5 {[%clk 0:01:15.2]} 22. Nxc6 {[%clk 0:00:54]}
22... Ncxe4 {[%clk 0:00:41.2]} 23. Nxe4 {[%clk 0:00:45.3]} 23... Nxe4 {[%clk
0:00:42.1]} 24. Bb4 {[%clk 0:00:30.5]} 24... Ng3+ {[%clk 0:00:41.2]} 25. Kh2
{[%clk 0:00:30.8]} 25... Nxf1+ {[%clk 0:00:40.3]} 26. Bxf1 {[%clk 0:00:31.4]}
26... Qa6 {[%clk 0:00:34.4]} 27. Bxf8 {[%clk 0:00:22]} 27... Bxf8 {[%clk
0:00:25.9]} 28. Ne7+ {[%clk 0:00:22.3]} 28... Kg7 {[%clk 0:00:24.7]} 29. Nd5
{[%clk 0:00:18.5]} 29... Qd6+ {[%clk 0:00:21.9]} 30. Kh1 {[%clk 0:00:18.4]}
30... Bf5 {[%clk 0:00:22.1]} 31. Qc3+ {[%clk 0:00:18.4]} 31... f6 {[%clk
0:00:22.3]} 32. Rb7+ {[%clk 0:00:17.6]} 32... Kh6 {[%clk 0:00:19.4]} 33. Nxf6
{[%clk 0:00:16.8]} 33... Bg7 {[%clk 0:00:19.1]} 34. Rxg7 {[%clk 0:00:16.8]}
34... Rh8 {[%clk 0:00:09]} 35. Ng8+ {[%clk 0:00:12.2]} 35... Kg5 {[%clk
0:00:07.3]} 36. Qe3+ {[%clk 0:00:10.1]} 36... Kh4 {[%clk 0:00:05.8]} 37. Qh6+
{[%clk 0:00:08.4]} 37... Kg3 {[%clk 0:00:03.4]} 38. Qe3+ {[%clk 0:00:08.6]}
38... Kh4 {[%clk 0:00:02.4]} 39. g3+ {[%clk 0:00:05.5]} 1-0

[Event "*** Titled Tuesday Blitz"]
[Site "Chess.com"]
[Date "2020.11.10"]
[Round "4"]
[White "ljuks68"]
[Black "DenisQ"]
[Result "0-1"]
[WhiteElo "2358"]
[BlackElo "2630"]
[TimeControl "180+1"]
[EndTime "10:42:33 PST"]
[Termination "DenisQ won on time"]

1. e4 {[%clk 0:03:00.9]} 1... c6 {[%clk 0:02:59.4]} 2. d4 {[%clk 0:03:00.2]}
2... d5 {[%clk 0:03:00.3]} 3. e5 {[%clk 0:03:00.6]} 3... c5 {[%clk 0:03:00.1]}
4. Nf3 {[%clk 0:02:59.9]} 4... Nc6 {[%clk 0:02:56.8]} 5. c4 {[%clk 0:02:59.8]}
5... cxd4 {[%clk 0:02:55.2]} 6. Nxd4 {[%clk 0:02:59.4]} 6... e6 {[%clk
0:02:55.1]} 7. Nc3 {[%clk 0:02:54.8]} 7... Bb4 {[%clk 0:02:50.9]} 8. Nxc6 {[%clk
0:02:54.7]} 8... bxc6 {[%clk 0:02:50.4]} 9. Qa4 {[%clk 0:02:55.2]} 9... Bxc3+
{[%clk 0:02:45.5]} 10. bxc3 {[%clk 0:02:54.5]} 10... Ne7 {[%clk 0:02:45.6]} 11.
Bd3 {[%clk 0:02:51.6]} 11... O-O {[%clk 0:02:44.5]} 12. O-O {[%clk 0:02:51]}
12... Qc7 {[%clk 0:02:27.1]} 13. Ba3 {[%clk 0:02:41.3]} 13... c5 {[%clk
0:02:14.5]} 14. f4 {[%clk 0:02:36.6]} 14... Bd7 {[%clk 0:02:09.3]} 15. Qa6
{[%clk 0:02:34.8]} 15... Rab8 {[%clk 0:02:03.2]} 16. Rab1 {[%clk 0:02:30.8]}
16... Rb6 {[%clk 0:01:58.3]} 17. Qa5 {[%clk 0:02:25.5]} 17... Rc8 {[%clk
0:01:57.1]} 18. Rb3 {[%clk 0:01:59.2]} 18... g6 {[%clk 0:01:24]} 19. Kf2 {[%clk
0:01:52.5]} 19... dxc4 {[%clk 0:01:05.3]} 20. Bxc4 {[%clk 0:01:50.6]} 20... Nd5
{[%clk 0:01:01]} 21. g3 {[%clk 0:01:27.4]} 21... Rxb3 {[%clk 0:00:40.4]} 22.
Qxc7 {[%clk 0:01:23.1]} 22... Rxc7 {[%clk 0:00:41.3]} 23. axb3 {[%clk
0:01:21.1]} 23... Nxc3 {[%clk 0:00:41.4]} 24. Rc1 {[%clk 0:01:13.5]} 24... Na2
{[%clk 0:00:41]} 25. Rd1 {[%clk 0:01:04.2]} 25... Nb4 {[%clk 0:00:39.7]} 26. Rd6
{[%clk 0:01:03.4]} 26... Kg7 {[%clk 0:00:36.4]} 27. g4 {[%clk 0:00:59.3]} 27...
Bc6 {[%clk 0:00:26.4]} 28. f5 {[%clk 0:00:55.1]} 28... gxf5 {[%clk 0:00:27.3]}
29. gxf5 {[%clk 0:00:55]} 29... Bd5 {[%clk 0:00:22.7]} 30. f6+ {[%clk
0:00:52.2]} 30... Kg6 {[%clk 0:00:22.2]} 31. Bxb4 {[%clk 0:00:31.3]} 31... cxb4
{[%clk 0:00:19.9]} 32. Bd3+ {[%clk 0:00:30.8]} 32... Kg5 {[%clk 0:00:20.2]} 33.
Ke3 {[%clk 0:00:18.4]} 33... Bxb3 {[%clk 0:00:19.7]} 34. Rd8 {[%clk 0:00:17.4]}
34... Bc2 {[%clk 0:00:18.8]} 35. Rg8+ {[%clk 0:00:15.5]} 35... Kh6 {[%clk
0:00:18]} 36. Be2 {[%clk 0:00:07.6]} 36... b3 {[%clk 0:00:17.3]} 37. Rg4 {[%clk
0:00:06.1]} 37... Bf5 {[%clk 0:00:10.3]} 38. Rh4+ {[%clk 0:00:03.8]} 38... Kg6
{[%clk 0:00:10.5]} 39. Rb4 {[%clk 0:00:03.5]} 39... Bc2 {[%clk 0:00:09.1]} 40.
Rg4+ {[%clk 0:00:02.3]} 40... Kf5 {[%clk 0:00:09.3]} 0-1

[Event "*** Titled Tuesday Blitz"]
[Site "Chess.com"]
[Date "2020.11.10"]
[Round "4"]
[White "rududuyk"]
[Black "Chessdude1987"]
[Result "1-0"]
[WhiteElo "2175"]
[BlackElo "2278"]
[TimeControl "180+1"]
[EndTime "10:42:33 PST"]
[Termination "rududuyk won by checkmate"]

1. e4 {[%clk 0:03:00.9]} 1... e6 {[%clk 0:02:59.9]} 2. d4 {[%clk 0:03:00.6]}
2... d5 {[%clk 0:03:00.1]} 3. Nd2 {[%clk 0:03:01.1]} 3... c5 {[%clk 0:03:00.2]}
4. exd5 {[%clk 0:02:58.4]} 4... exd5 {[%clk 0:03:00.3]} 5. Ngf3 {[%clk
0:02:56.4]} 5... Nf6 {[%clk 0:03:00.3]} 6. Bb5+ {[%clk 0:02:54.5]} 6... Bd7
{[%clk 0:02:59.3]} 7. Qe2+ {[%clk 0:02:49.3]} 7... Be7 {[%clk 0:02:59.5]} 8.
dxc5 {[%clk 0:02:38]} 8... O-O {[%clk 0:02:59]} 9. Nb3 {[%clk 0:02:35.9]} 9...
Re8 {[%clk 0:02:58.8]} 10. Be3 {[%clk 0:02:35.1]} 10... Ne4 {[%clk 0:02:34.3]}
11. O-O-O {[%clk 0:02:19.4]} 11... Bxb5 {[%clk 0:01:56.3]} 12. Qxb5 {[%clk
0:02:17.6]} 12... Nc6 {[%clk 0:01:51.7]} 13. Qxb7 {[%clk 0:02:12.1]} 13... Rc8
{[%clk 0:01:48.9]} 14. Kb1 {[%clk 0:02:02.3]} 14... Rc7 {[%clk 0:01:46.1]} 15.
Qb5 {[%clk 0:01:57.1]} 15... a6 {[%clk 0:01:30.2]} 16. Qa4 {[%clk 0:01:46.3]}
16... Qa8 {[%clk 0:01:12.2]} 17. Rxd5 {[%clk 0:01:27.5]} 17... Bf6 {[%clk
0:01:12.1]} 18. Rhd1 {[%clk 0:01:02.7]} 18... Rce7 {[%clk 0:00:58.7]} 19. Nfd4
{[%clk 0:00:53]} 19... Ne5 {[%clk 0:00:39.6]} 20. Nf5 {[%clk 0:00:49.4]} 20...
Re6 {[%clk 0:00:26.5]} 21. Qxe4 {[%clk 0:00:45.5]} 21... g6 {[%clk 0:00:25.9]}
22. Nd6 {[%clk 0:00:41.7]} 22... R8e7 {[%clk 0:00:25.3]} 23. Qa4 {[%clk
0:00:36.8]} 23... h5 {[%clk 0:00:22.5]} 24. f4 {[%clk 0:00:29.9]} 24... Ng4
{[%clk 0:00:22.4]} 25. Bd4 {[%clk 0:00:29.5]} 25... Bxd4 {[%clk 0:00:21.8]} 26.
R5xd4 {[%clk 0:00:29.1]} 26... Ne3 {[%clk 0:00:21.5]} 27. Rc1 {[%clk 0:00:28.4]}
27... Qxg2 {[%clk 0:00:20.8]} 28. Nc8 {[%clk 0:00:27.2]} 28... Re8 {[%clk
0:00:20.1]} 29. Nd6 {[%clk 0:00:26.1]} 29... R8e7 {[%clk 0:00:19]} 30. Ne4
{[%clk 0:00:25.3]} 30... Rxe4 {[%clk 0:00:18.4]} 31. Rd8+ {[%clk 0:00:24.5]}
31... Kg7 {[%clk 0:00:17.9]} 32. Qc6 {[%clk 0:00:23.1]} 32... R4e6 {[%clk
0:00:16.6]} 33. Qc8 {[%clk 0:00:23]} 33... Kf6 {[%clk 0:00:15.1]} 34. Rf8 {[%clk
0:00:20.5]} 34... Qe4 {[%clk 0:00:14.1]} 35. c6 {[%clk 0:00:19.4]} 35... Re8
{[%clk 0:00:14.1]} 36. Rxe8 {[%clk 0:00:19.1]} 36... Rxe8 {[%clk 0:00:14.2]} 37.
Qd7 {[%clk 0:00:19.1]} 37... Qe6 {[%clk 0:00:13]} 38. Qd4+ {[%clk 0:00:17.8]}
38... Kf5 {[%clk 0:00:13.3]} 39. c7 {[%clk 0:00:17.2]} 39... Nd5 {[%clk
0:00:10.2]} 40. Nc5 {[%clk 0:00:15.2]} 40... Qc6 {[%clk 0:00:08.1]} 41. Qd3+
{[%clk 0:00:11.2]} 41... Kf6 {[%clk 0:00:07.6]} 42. Qd4+ {[%clk 0:00:10.8]}
42... Ke7 {[%clk 0:00:06.2]} 43. Re1+ {[%clk 0:00:09.8]} 43... Kf8 {[%clk
0:00:06]} 44. Rxe8+ {[%clk 0:00:09.2]} 44... Kxe8 {[%clk 0:00:06]} 45. Qh8+
{[%clk 0:00:08.8]} 45... Ke7 {[%clk 0:00:06]} 46. Qd8# {[%clk 0:00:08.4]} 1-0

[Event "*** Titled Tuesday Blitz"]
[Site "Chess.com"]
[Date "2020.11.10"]
[Round "4"]
[White "Deepweb2020"]
[Black "JiiHart"]
[Result "1-0"]
[WhiteElo "2242"]
[BlackElo "2069"]
[TimeControl "180+1"]
[EndTime "10:42:35 PST"]
[Termination "Deepweb2020 won on time"]

1. d4 {[%clk 0:03:00.9]} 1... Nf6 {[%clk 0:02:59.3]} 2. c4 {[%clk 0:02:59.7]}
2... e6 {[%clk 0:02:59.5]} 3. g3 {[%clk 0:02:55.4]} 3... c5 {[%clk 0:02:58.7]}
4. Nf3 {[%clk 0:02:48.3]} 4... cxd4 {[%clk 0:02:57.9]} 5. Nxd4 {[%clk 0:02:46]}
5... Nc6 {[%clk 0:02:57.4]} 6. Bg2 {[%clk 0:02:45.2]} 6... Be7 {[%clk 0:02:55]}
7. O-O {[%clk 0:02:43]} 7... O-O {[%clk 0:02:53.9]} 8. b3 {[%clk 0:02:42.6]}
8... a6 {[%clk 0:02:52.8]} 9. Bb2 {[%clk 0:02:34.5]} 9... Qc7 {[%clk 0:02:52.3]}
10. Nc3 {[%clk 0:02:32.7]} 10... b6 {[%clk 0:02:40.6]} 11. Nxc6 {[%clk
0:02:19.6]} 11... dxc6 {[%clk 0:02:39.8]} 12. Na4 {[%clk 0:02:00]} 12... Bb7
{[%clk 0:02:18]} 13. c5 {[%clk 0:01:39]} 13... b5 {[%clk 0:02:15.1]} 14. Nb6
{[%clk 0:01:39]} 14... Rad8 {[%clk 0:02:14.1]} 15. Qc2 {[%clk 0:01:38.1]} 15...
Nd5 {[%clk 0:02:12.2]} 16. Nxd5 {[%clk 0:01:29]} 16... cxd5 {[%clk 0:02:09.3]}
17. b4 {[%clk 0:01:29]} 17... e5 {[%clk 0:01:56]} 18. a4 {[%clk 0:01:25.3]}
18... d4 {[%clk 0:01:41.9]} 19. c6 {[%clk 0:00:55.2]} 19... Rc8 {[%clk
0:01:26.6]} 20. Rfc1 {[%clk 0:00:48.7]} 20... Qd6 {[%clk 0:00:58.3]} 21. cxb7
{[%clk 0:00:38.8]} 21... Rxc2 {[%clk 0:00:56.7]} 22. Rxc2 {[%clk 0:00:39.7]}
22... Qxb4 {[%clk 0:00:44.8]} 23. axb5 {[%clk 0:00:20.1]} 23... Qxb5 {[%clk
0:00:41.3]} 24. Rac1 {[%clk 0:00:15.5]} 24... Bd6 {[%clk 0:00:30.1]} 25. h4
{[%clk 0:00:14.1]} 25... f5 {[%clk 0:00:25.4]} 26. Bc6 {[%clk 0:00:12.8]} 26...
Qb6 {[%clk 0:00:22.7]} 27. Bd5+ {[%clk 0:00:12.8]} 27... Kh8 {[%clk 0:00:21.9]}
28. Rc8 {[%clk 0:00:10.8]} 28... Qxb2 {[%clk 0:00:19.4]} 29. Rxf8+ {[%clk
0:00:10.4]} 29... Bxf8 {[%clk 0:00:19.1]} 30. Rc8 {[%clk 0:00:10.9]} 30... Qb1+
{[%clk 0:00:06]} 31. Kg2 {[%clk 0:00:09.5]} 31... Qb4 {[%clk 0:00:03.2]} 32.
b8=Q {[%clk 0:00:07.9]} 32... Qxb8 {[%clk 0:00:02]} 33. Rxb8 {[%clk 0:00:08.8]}
33... g6 {[%clk 0:00:01.9]} 34. Rxf8+ {[%clk 0:00:08.5]} 34... Kg7 {[%clk
0:00:02.4]} 35. Rf7+ {[%clk 0:00:09.4]} 1-0

[Event "*** Titled Tuesday Blitz"]
[Site "Chess.com"]
[Date "2020.11.10"]
[Round "4"]
[White "Blitzstream"]
[Black "Jospem"]
[Result "0-1"]
[WhiteElo "2731"]
[BlackElo "2918"]
[TimeControl "180+1"]
[EndTime "10:42:38 PST"]
[Termination "Jospem won by checkmate"]

1. d4 {[%clk 0:03:00.9]} 1... Nf6 {[%clk 0:02:59.7]} 2. Bg5 {[%clk 0:03:00.4]}
2... Ne4 {[%clk 0:02:58.9]} 3. Bh4 {[%clk 0:03:00.3]} 3... c5 {[%clk 0:02:50]}
4. f3 {[%clk 0:02:59.6]} 4... g5 {[%clk 0:02:49.7]} 5. fxe4 {[%clk 0:03:00]}
5... gxh4 {[%clk 0:02:50]} 6. e3 {[%clk 0:03:00.9]} 6... Nc6 {[%clk 0:02:46.6]}
7. Nf3 {[%clk 0:02:55.9]} 7... Bg7 {[%clk 0:02:39.5]} 8. c3 {[%clk 0:02:46.9]}
8... Qb6 {[%clk 0:02:32.5]} 9. Qb3 {[%clk 0:02:41.5]} 9... h3 {[%clk 0:02:16.2]}
10. gxh3 {[%clk 0:02:40.2]} 10... Bh6 {[%clk 0:02:14.5]} 11. Qxb6 {[%clk
0:02:13]} 11... axb6 {[%clk 0:02:14.1]} 12. Nbd2 {[%clk 0:02:13.9]} 12... Bxe3
{[%clk 0:01:34.7]} 13. Nc4 {[%clk 0:02:12.8]} 13... cxd4 {[%clk 0:01:35.1]} 14.
Nxb6 {[%clk 0:01:51]} 14... Rb8 {[%clk 0:01:11.9]} 15. Nd5 {[%clk 0:01:32.2]}
15... Bh6 {[%clk 0:01:04.3]} 16. cxd4 {[%clk 0:01:23.5]} 16... e6 {[%clk
0:01:04]} 17. Nf6+ {[%clk 0:01:20.5]} 17... Ke7 {[%clk 0:01:02.8]} 18. e5 {[%clk
0:01:17.1]} 18... d6 {[%clk 0:00:54.7]} 19. Ng4 {[%clk 0:01:09]} 19... Bf4
{[%clk 0:00:54.8]} 20. Be2 {[%clk 0:00:49.4]} 20... h5 {[%clk 0:00:53.5]} 21.
exd6+ {[%clk 0:00:49.5]} 21... Kxd6 {[%clk 0:00:53.8]} 22. Nf6 {[%clk
0:00:33.7]} 22... Ke7 {[%clk 0:00:52]} 23. Ne4 {[%clk 0:00:33.7]} 23... b6
{[%clk 0:00:45.5]} 24. Nc3 {[%clk 0:00:30.8]} 24... Rd8 {[%clk 0:00:41.5]} 25.
Rd1 {[%clk 0:00:30.2]} 25... Nb4 {[%clk 0:00:21.8]} 26. Kf2 {[%clk 0:00:19.8]}
26... Bb7 {[%clk 0:00:20]} 27. Rhe1 {[%clk 0:00:19.7]} 27... Nc2 {[%clk
0:00:17]} 28. Rg1 {[%clk 0:00:14]} 28... Be3+ {[%clk 0:00:16.6]} 29. Kf1 {[%clk
0:00:09.5]} 29... Bxg1 {[%clk 0:00:14.1]} 30. Kxg1 {[%clk 0:00:10]} 30... Bxf3
{[%clk 0:00:13]} 31. Bxf3 {[%clk 0:00:10.9]} 31... Nxd4 {[%clk 0:00:13.6]} 32.
Bxh5 {[%clk 0:00:11.3]} 32... Nf5 {[%clk 0:00:13.4]} 33. Re1 {[%clk 0:00:08.7]}
33... Rd2 {[%clk 0:00:11.6]} 34. Bg4 {[%clk 0:00:08.9]} 34... Rg8 {[%clk
0:00:11.4]} 35. Kf1 {[%clk 0:00:07.7]} 35... Nh6 {[%clk 0:00:09.2]} 36. Ne4
{[%clk 0:00:03.3]} 36... Rxb2 {[%clk 0:00:04.7]} 37. Ng3 {[%clk 0:00:03.7]}
37... Nxg4 {[%clk 0:00:04.2]} 38. hxg4 {[%clk 0:00:03.8]} 38... Rxg4 {[%clk
0:00:05.1]} 39. Rc1 {[%clk 0:00:03.9]} 39... Rf4+ {[%clk 0:00:04.6]} 40. Kg1
{[%clk 0:00:03.5]} 40... Rff2 {[%clk 0:00:04.9]} 41. Rc7+ {[%clk 0:00:03.7]}
41... Kd8 {[%clk 0:00:04.2]} 42. Ra7 {[%clk 0:00:03.1]} 42... Rg2+ {[%clk
0:00:04.6]} 43. Kf1 {[%clk 0:00:03.3]} 43... Rxh2 {[%clk 0:00:05]} 44. Rxf7
{[%clk 0:00:03.3]} 44... Rb1# {[%clk 0:00:05.4]} 0-1

[Event "*** Titled Tuesday Blitz"]
[Site "Chess.com"]
[Date "2020.11.10"]
[Round "4"]
[White "Fandorine"]
[Black "LawrenceTrent"]
[Result "0-1"]
[WhiteElo "2830"]
[BlackElo "2552"]
[TimeControl "180+1"]
[EndTime "10:42:39 PST"]
[Termination "LawrenceTrent won by resignation"]

1. e4 {[%clk 0:03:00.9]} 1... e5 {[%clk 0:02:59.5]} 2. Bc4 {[%clk 0:03:00]} 2...
Nf6 {[%clk 0:02:59.1]} 3. d3 {[%clk 0:03:00.1]} 3... Nc6 {[%clk 0:02:59.1]} 4.
Nc3 {[%clk 0:03:00.5]} 4... Bb4 {[%clk 0:02:58.9]} 5. Ne2 {[%clk 0:02:58.3]}
5... d5 {[%clk 0:02:58.9]} 6. exd5 {[%clk 0:02:58.3]} 6... Nxd5 {[%clk
0:02:59.8]} 7. Bxd5 {[%clk 0:02:57.9]} 7... Qxd5 {[%clk 0:02:58.9]} 8. O-O
{[%clk 0:02:58.3]} 8... Qd7 {[%clk 0:02:48.5]} 9. f4 {[%clk 0:02:56.4]} 9... O-O
{[%clk 0:02:48.1]} 10. f5 {[%clk 0:02:56.4]} 10... f6 {[%clk 0:02:48.1]} 11. Ng3
{[%clk 0:02:44.9]} 11... Kh8 {[%clk 0:02:26.3]} 12. Nce4 {[%clk 0:02:39.4]}
12... Rd8 {[%clk 0:02:21.5]} 13. Kh1 {[%clk 0:02:39.5]} 13... Bf8 {[%clk
0:02:20.7]} 14. Be3 {[%clk 0:02:38.2]} 14... b6 {[%clk 0:02:20.6]} 15. Qh5
{[%clk 0:02:38.1]} 15... Qe8 {[%clk 0:02:17.8]} 16. Qh4 {[%clk 0:02:34.1]} 16...
a5 {[%clk 0:02:17.1]} 17. a3 {[%clk 0:02:33]} 17... Qf7 {[%clk 0:02:12.4]} 18.
Ne2 {[%clk 0:02:30]} 18... Ne7 {[%clk 0:02:11.2]} 19. N2g3 {[%clk 0:02:22.1]}
19... c5 {[%clk 0:02:09.2]} 20. Rae1 {[%clk 0:02:05.9]} 20... Bb7 {[%clk
0:02:06.5]} 21. Nd2 {[%clk 0:02:01.1]} 21... Rac8 {[%clk 0:02:00.2]} 22. Nge4
{[%clk 0:01:57.9]} 22... Nd5 {[%clk 0:01:57.4]} 23. Rf3 {[%clk 0:01:55.1]} 23...
b5 {[%clk 0:01:53.3]} 24. Rh3 {[%clk 0:01:54.3]} 24... Qg8 {[%clk 0:01:53.8]}
25. c4 {[%clk 0:01:38.7]} 25... Ne7 {[%clk 0:01:46.7]} 26. Bxc5 {[%clk 0:01:19]}
26... Nxf5 {[%clk 0:01:42]} 27. Qf2 {[%clk 0:01:19.5]} 27... Nd4 {[%clk
0:01:25.3]} 28. Bxf8 {[%clk 0:01:19.2]} 28... Qxf8 {[%clk 0:01:24.6]} 29. c5
{[%clk 0:01:19.5]} 29... Bd5 {[%clk 0:01:02.5]} 30. b4 {[%clk 0:01:07.5]} 30...
axb4 {[%clk 0:01:01.8]} 31. axb4 {[%clk 0:01:08.4]} 31... Ra8 {[%clk 0:01:01.8]}
32. Nb1 {[%clk 0:00:48.6]} 32... Ra2 {[%clk 0:01:00.1]} 33. Qh4 {[%clk
0:00:48.2]} 33... Bg8 {[%clk 0:00:57.7]} 34. Nbd2 {[%clk 0:00:40.4]} 34... Ne6
{[%clk 0:00:40.8]} 35. Nf3 {[%clk 0:00:19.1]} 35... Nf4 {[%clk 0:00:40.1]} 36.
Rg3 {[%clk 0:00:19.7]} 36... Rxd3 {[%clk 0:00:33.5]} 37. h3 {[%clk 0:00:13.7]}
37... Nxg2 {[%clk 0:00:27.3]} 38. Rxg2 {[%clk 0:00:09.4]} 38... Rxf3 {[%clk
0:00:27.4]} 39. Rxa2 {[%clk 0:00:08.8]} 39... Bxa2 {[%clk 0:00:28.3]} 40. Nd6
{[%clk 0:00:07.4]} 40... Bd5 {[%clk 0:00:25.4]} 41. Kg1 {[%clk 0:00:07.9]} 41...
Rf4 {[%clk 0:00:23]} 42. Qh5 {[%clk 0:00:04]} 42... g6 {[%clk 0:00:21.1]} 43.
Qd1 {[%clk 0:00:04.1]} 43... Qh6 {[%clk 0:00:20.6]} 44. Qxd5 {[%clk 0:00:03.8]}
44... Qg5+ {[%clk 0:00:17.4]} 45. Kh1 {[%clk 0:00:04.3]} 45... Qg3 {[%clk
0:00:16.7]} 46. Qg2 {[%clk 0:00:03.6]} 46... Qxe1+ {[%clk 0:00:16.8]} 0-1